Cogmind - Beta 16 @@@ ROGUE MODE // 2025.12.10 @ 12:41:23 Player: Mozco Result: Destroyed by ME-RLN with Improved Arc Thrower Performance ------------- Evolutions (1) 500 Regions Visited (6) 1200 Robots Destroyed (85) 425 Value Destroyed (1673) 1673 Prototype IDs (42) 840 Alien Tech Used (0) 0 Bonus (467) 467 TOTAL SCORE: 5105 Bonus ------- High Alert Combat Kills 107 Follower Combat Kills 102 Aligned with FarCom 300 Friendly Fire -42 Cogmind --------- Core Integrity 0/400 Matter 260/300 Energy 228/310 System Corruption 14% Temperature Cool (85) Movement Walking (650) Ox7 Location -8/Mines Parts ------- > --- POWER (1) -------- Reinforced Fission Core > --- PROPULSION (2) --- Potential Leg Potential Leg > --- UTILITY (4) ------ Humpback Hardened Light Armor Plating Hardened Medium Armor Plating > --- WEAPON (2) ------- Great Axe > --- INVENTORY (35) --- Fission Core Fission Core Light Fission Core Advanced Myomer Leg Advanced Myomer Leg Experimental Heat Sink Improved Cooling System Experimental Targeting Computer Advanced Weapon Cycler 8R-AWN's Armor/EX Hacking Suite Improved Trap Extractor (1/6 Explosive) Chronowheel Improved Assault Rifle Improved Assault Rifle AWS/Autocannon Rocket Launcher Datajack Remote Datajack Peak State ------------ > --- POWER ------------ Light Deuterium Engine > --- PROPULSION ------- Potential Leg Potential Leg > --- UTILITY ---------- Humpback Hardened Medium Armor Plating Hardened Medium Armor Plating > --- WEAPON ----------- Katana Great Axe > --- INVENTORY -------- Fission Core Fission Core Light Fission Core Reinforced Fission Core Advanced Myomer Leg Advanced Myomer Leg Wheel Wheel Wheel Experimental Heat Sink Improved Cooling System Experimental Targeting Computer Advanced Weapon Cycler Hardened Light Armor Plating Hardened Medium Armor Plating 8R-AWN's Armor/EX Hacking Suite Improved Trap Extractor Chronowheel Improved Assault Rifle Improved Assault Rifle AWS/Autocannon Rocket Launcher Datajack Remote Datajack [Rating: 54] Favorites ----------- Power Improved Ion Engine Engine Improved Ion Engine Power Core Light Nuclear Core Propulsion Wheel Leg Potential Leg Wheel Wheel Utility Hardened Medium Armor Plating Device Improved Heat Sink Storage Large Storage Unit Hackware Hacking Suite Protection Hardened Medium Armor Plating Weapon Improved Medium Laser Energy Gun Improved Medium Laser Energy Cannon Particle Cannon Ballistic Gun Assault Rifle Launcher Rocket Launcher Slashing Weapon Great Axe Special Melee Weapon Datajack Build | -11 -10 -10 -9 -9 -9 -8 ------- Run | Yrd Mat Min Mat Min Exi Min Slots Evolved 2 | . . . 2 . . . Power . | . . . . . . . Propulsion . | . . . . . . . Utility 2 | . . . 2 . . . Weapon . | . . . . . . . Parts Attached 56 | 6 14 4 18 5 7 2 Power 7 | 1 1 . 3 . 1 1 Engine 5 | 1 1 . 2 . 1 . Core 2 | . . . 1 . . 1 Reactor . | . . . . . . . Propulsion 18 | 2 6 3 3 2 2 . Treads . | . . . . . . . Leg 2 | . . . . . 2 . Wheel 16 | 2 6 3 3 2 . . Hover . | . . . . . . . Flight . | . . . . . . . Utility 15 | 1 3 1 5 2 2 1 Device 3 | . 1 1 . 1 . . Storage 6 | 1 2 . 1 . 2 . Processor . | . . . . . . . Hackware 1 | . . . 1 . . . Protection 5 | . . . 3 1 . 1 Artifact . | . . . . . . . Weapon 16 | 2 4 . 7 1 2 . Energy Gun 6 | . 3 . 3 . . . Energy Cannon 1 | . . . 1 . . . Ballistic Gun 5 | 2 1 . 2 . . . Ballistic Cannon . | . . . . . . . Launcher 1 | . . . 1 . . . Special Weapon . | . . . . . . . Impact Weapon . | . . . . . . . Slashing Weapon 2 | . . . . . 2 . Piercing Weapon . | . . . . . . . Special Melee Weapon 1 | . . . . 1 . . Unidentified Prototypes 2 | . . . 2 . . . Parts Lost 19 | . 7 . 1 . 11 . Power 3 | . 1 . . . 2 . Propulsion 8 | . 3 . . . 5 . Utility 3 | . . . . . 3 . Weapon 5 | . 3 . 1 . 1 . Highest Loss Streak 7 | . 3 . 1 . 7 . To Critical Strikes 1 | . . . . . 1 . Average Backups 14 | 2 11 14 14 14 16 20 Power 1 | . 1 1 1 1 2 3 Propulsion 2 | . 2 3 3 3 2 2 Utility 3 | . 1 3 4 4 5 7 Weapon 4 | . 5 5 3 4 4 4 Tool/Special . | . . . . . . . Unused Backups 27 | 2 . 2 4 3 . 16 Power 4 | . . 1 . . . 3 Propulsion 6 | 2 . 1 . 1 . 2 Utility 7 | . . . . 1 . 6 Weapon 7 | . . . 4 . . 3 Tool/Special 3 | . . . . 1 . 2 Average Slot Usage (%) 94 | . 94 100 99 99 76 66 Engine 11 | . 13 14 7 11 10 . Leg 1 | . . . . . 5 22 Wheel 23 | . 27 28 22 22 16 . Device 9 | . 10 14 11 10 2 . Storage 12 | . 14 14 11 11 11 11 Protection 12 | . . . 21 21 21 16 Energy Gun 13 | . 8 28 14 11 . . Energy Cannon 1 | . . . 3 . . . Ballistic Gun 5 | . 19 . 3 6 . . Slashing Weapon 1 | . . . . . 7 11 Special Melee Weapon 1 | . . . . 4 2 . Peak Build Rating 54 | 6 8 11 23 22 54 51 Average Rating 17 | 5 7 9 20 21 27 49 On Entrance 15 | . 6 8 11 22 22 42 Avg Prop Armor Cover (%) . | . . . . . . . Naked Turns . | . . . . . . . Heaviest Build 238 | 14 30 27 48 52 229 238 Greatest Support 60 | 26 26 26 32 32 60 60 Greatest Overweight (x) 21 | . 2 1 2 1 21 3 Average Overweight (x) 1 | . . 1 1 1 2 3 Largest Inventory Capacity 35 | 8 15 15 15 15 35 35 Average Capacity 16 | 7 12 15 15 15 24 35 Most Carried 31 | 6 15 15 15 15 31 25 Average Carried 14 | 2 11 14 14 14 18 23 Final Capacity 35 | 8 15 15 15 15 35 35 Final Carried 26 | 5 13 15 15 15 26 23 Class Distribution -------------------- 51% | Mutant 39% | Scavenger-Mutant 9% | Hauler-Mutant Dominant Class ---------------- Mutant | -10/Materials Scavenger-Mutant | -10/Mines Mutant | -9/Materials Mutant | -9/Mines Mutant | -9/Exiles Mutant | -8/Mines Resources | -11 -10 -10 -9 -9 -9 -8 ----------- Run | Yrd Mat Min Mat Min Exi Min Matter Collected 1523 | 332 478 40 443 103 127 . Remotely . | . . . . . . . Salvage Created 3005 | 152 890 170 1579 45 103 66 Parts 180 | 5 51 8 103 7 5 1 Haulers Intercepted 6 | . 2 . 4 . . . Recyclers Shooed 11 | 2 4 . 5 . . . Parts Field Recycled . | . . . . . . . Retrieved Matter . | . . . . . . . Parts Self-Destructed . | . . . . . . . Prevented . | . . . . . . . Parts Restored . | . . . . . . . Kills | -11 -10 -10 -9 -9 -9 -8 ------- Run | Yrd Mat Min Mat Min Exi Min Combat Hostiles Destroyed 49 | . 15 3 29 . 1 1 Melee 2 | . . . . . 1 1 Guns 37 | . 15 3 19 . . . Cannons 6 | . . . 6 . . . AOE 3 | . . . 3 . . . Classes Destroyed 13 | 3 6 1 3 . . . Worker 10 | 2 3 . 5 . . . Builder 1 | . 1 . . . . . Tunneler 3 | 1 . . . 2 . . Hauler 6 | . 2 . 4 . . . Recycler 7 | 1 3 1 2 . . . Mechanic 1 | . . . 1 . . . Operator 4 | . 1 . 3 . . . Watcher 5 | . 3 . 2 . . . Swarmer 15 | . 6 . 9 . . . Grunt 25 | . 9 2 13 . . 1 Duelist 1 | . . . 1 . . . Sentry 6 | . . . 6 . . . Assembled 2 | . . 2 . . . . Best Kill Streak 8 | 3 8 2 8 1 1 1 Combat Bots Only 7 | . 4 2 7 . 1 1 Max Kills in Single Turn 3 | 1 3 2 2 1 1 1 Gunslinging 1 | . 1 . . . . . Exploded 2 | . . . 2 . . . Melee 1 | . . . . . 1 1 Uniques/NPCs Destroyed 1 | . . . . . 1 . 8R-AWN (-9/Exiles) Combat | -11 -10 -10 -9 -9 -9 -8 -------- Run | Yrd Mat Min Mat Min Exi Min Hostile Shots Fired 392 | . 81 20 103 . 158 30 Missed 115 | . 18 6 36 . 46 9 Hits 277 | . 63 14 67 . 112 21 Projectile 277 | . 63 14 67 . 112 21 Critical Strikes 42 | . 1 . 2 . 36 3 Part Disruptions 2 | . . . . . 1 1 Damage Taken 3824 | . 751 193 827 . 1831 222 Core 649 | . 163 81 67 . 257 81 Absorbed by Shields . | . . . . . . . Regen/Repaired (Parts) 172 | . . . 172 . . . Core Remaining (%) 51 | 100 . 2 . . . . Volleys Fired 246 | 12 73 22 136 2 1 . Largest 2 | 2 2 2 2 2 1 . Hottest 112 | 40 80 80 112 79 23 . Shots Fired 476 | 24 140 40 267 4 1 . Gun 417 | 24 140 40 208 4 1 . Cannon 57 | . . . 57 . . . Launcher 2 | . . . 2 . . . Special . | . . . . . . . Kinetic 185 | 24 104 . 55 1 1 . Thermal 224 | . 34 18 169 3 . . Explosive 2 | . . . 2 . . . Electromagnetic 65 | . 2 22 41 . . . Robot Hit Streak 23 | 4 16 5 19 22 23 . Robot Miss Streak 7 | 7 6 5 5 . . . Penetration Max . | . . . . . . . Secondary Targets 1 | . 1 . . . . . Max Gunslinging Chain 1 | . 1 . . . . . Shots Hit Robots 316 | 10 91 20 160 3 30 2 Core Hits 128 | 5 43 10 60 2 6 2 Critical Kills 1 | . . . 1 . . . Critical Parts Destroyed 1 | . 1 . . . . . Critical Strikes 14 | . 2 . 10 . 2 . Burn 9 | . 1 . 8 . . . Meltdown 1 | . . . 1 . . . Destroy 1 | . 1 . . . . . Corrupt 1 | . . . 1 . . . Sever 2 | . . . . . 2 . Melee Attacks 44 | . . . . . 42 2 Impact . | . . . . . . . Slashing 39 | . . . . . 37 2 Piercing . | . . . . . . . Sneak Attacks 4 | . . . . . 4 . Combat Hostiles . | . . . . . . . Follow-up Attacks 3 | . . . . . 3 . Damage Inflicted 5891 | 149 1305 341 3022 51 951 72 Guns 3610 | 149 1138 238 2020 51 14 . Cannons 632 | . . . 632 . . . Explosions 640 | . 167 103 370 . . . Melee 1009 | . . . . . 937 72 Ramming . | . . . . . . . Kinetic 1495 | 149 801 . 515 16 14 . Thermal 2368 | . 291 190 1852 35 . . Explosive 509 | . 167 . 342 . . . Electromagnetic 510 | . 46 151 313 . . . Impact . | . . . . . . . Slashing 1009 | . . . . . 937 72 Piercing . | . . . . . . . Highest Corruption 14 | . . . 5 5 13 14 Average Corruption 5 | . . . 4 5 5 14 Corruption Purged . | . . . . . . . Corruption Blocked . | . . . . . . . Effects 44 | . . . 11 15 17 1 Message Errors 13 | . . . 3 4 5 1 Matter Fused 7 | . . . 2 3 2 . Heat Flow Errors 9 | . . . 3 2 4 . Energy Discharges 5 | . . . . 2 3 . Parts Rejected 1 | . . . 1 . . . Parts Fused 1 | . . . . . 1 . Data Loss (minor) 2 | . . . . 1 1 . Data Loss (major) 3 | . . . 1 2 . . Misfires 1 | . . . . 1 . . Alerts 1 | . . . . . 1 . Weapon Failures 1 | . . . 1 . . . Overload Shots . | . . . . . . . Overflow Damage 94 | . 49 . 45 . . . Projectiles 20 | . . . 20 . . . Explosions 74 | . 49 . 25 . . . Melee . | . . . . . . . Knockbacks . | . . . . . . . Impact . | . . . . . . . Kinetic . | . . . . . . . Secondary . | . . . . . . . Self-Inflicted Damage 157 | . 90 . 67 . . . Shots 3 | . 1 . 2 . . . Rammed . | . . . . . . . Targets Rammed . | . . . . . . . Kicked . | . . . . . . . Crushed . | . . . . . . . Highest Temperature 326 | . 27 2 326 272 273 92 Average Temperature 79 | . 10 1 85 103 104 63 Received Heat Transfer 762 | . 252 69 288 . . 153 Siege Activations . | . . . . . . . Martial Activations . | . . . . . . . Shielding Activations . | . . . . . . . Robots Disrupted . | . . . . . . . Combat Hostiles . | . . . . . . . Robots Corrupted . | . . . . . . . Combat Hostiles . | . . . . . . . Parts Fried 2 | . . . 2 . . . Impact Corruptions . | . . . . . . . Robots Melted 2 | . . . 2 . . . Combat Hostiles 1 | . . . 1 . . . Parts Melted 10 | . 2 . 8 . . . Heat Transferred 5682 | . 913 350 4345 74 . . Parts Sabotaged . | . . . . . . . Parts Stolen . | . . . . . . . Parts Stripped . | . . . . . . . Power Chain Reactions 2 | . . 1 1 . . . Alert | -11 -10 -10 -9 -9 -9 -8 ------- Run | Yrd Mat Min Mat Min Exi Min Maximum Alert Level 2 | . . . 2 1 . . Low Security (%) 75 | 100 100 100 27 88 . 100 Level 1 6 | . . . 14 11 . . Level 2 18 | . . . 58 . . . Level 3 . | . . . . . . . Level 4 . | . . . . . . . Level 5 . | . . . . . . . High Security . | . . . . . . . Max Security . | . . . . . . . Peak Influence 624 | 10 166 65 624 238 . 30 Initial 238 | . . 57 2 238 . . Average 152 | 2 61 13 379 87 . 15 Influence Increases 1844 | 20 546 121 1117 10 . 30 Destroy 0b10 Robot/C 1000 | . 300 80 600 . . 20 Destroy 0b10 Robot/NC 185 | 20 65 5 85 10 . . Destroy Leader 262 | . 70 20 162 . . 10 Allied During Kill 19 | . . 14 5 . . . Successful Hack 31 | . 14 . 17 . . . Select Force Hacks 60 | . 60 . . . . . Disable Machine 150 | . 15 . 135 . . . Destroy Structure 32 | . 22 2 8 . . . Lose Combat Pursuer 105 | . . . 105 . . . Influence Decreases 1814 | 20 398 261 513 622 . . Entered New Map 471 | . . 91 6 374 . . Time Decay 1223 | 20 328 170 457 248 . . Lost Part 80 | . 70 . 10 . . . Lost Ally 40 | . . . 40 . . . Squads Dispatched 9 | . 5 . 4 . . . Investigation 3 | . 3 . . . . . Extermination . | . . . . . . . Reinforcement 6 | . 2 . 4 . . . Assault . | . . . . . . . Garrison . | . . . . . . . Intercept . | . . . . . . . Searches Triggered . | . . . . . . . Construction Impeded 1 | . . . 1 . . . Haulers Reinforced . | . . . . . . . Active Scanning Responses . | . . . . . . . Cargo Convoy Interrupts . | . . . . . . . Stealth | -11 -10 -10 -9 -9 -9 -8 --------- Run | Yrd Mat Min Mat Min Exi Min Distress Signals 3 | . 1 . 2 . . . Communications Jammed . | . . . . . . . Distress Signals . | . . . . . . . Times Spotted 88 | . 22 10 49 . 3 4 Peak Tracking Total 6 | . 4 3 6 . 3 4 Tactical Retreats 5 | . . 1 4 . . . Traps | -11 -10 -10 -9 -9 -9 -8 ------- Run | Yrd Mat Min Mat Min Exi Min Traps Triggered 5 | . 1 . 3 1 . . Indirectly . | . . . . . . . Trap Hack Attempts 2 | . . . . 2 . . Triggered . | . . . . . . . Disarmed . | . . . . . . . Reprogrammed 1 | . . . . 1 . . Reused . | . . . . . . . Traps Extracted 1 | . . . . 1 . . Installed . | . . . . . . . Triggered . | . . . . . . . Most Traps Carried 1 | . . . . 1 1 1 Machines | -11 -10 -10 -9 -9 -9 -8 ---------- Run | Yrd Mat Min Mat Min Exi Min Machines Disabled 10 | . 1 . 9 . . . Max in Single Turn 4 | . 1 . 4 . . . Machines Repaired . | . . . . . . . Machines Dismantled . | . . . . . . . Machines Sabotaged . | . . . . . . . Overloaded Fab Kills . | . . . . . . . Hacking | -11 -10 -10 -9 -9 -9 -8 --------- Run | Yrd Mat Min Mat Min Exi Min Machines Accessed 17 | . 6 . 7 2 2 . Terminals 10 | . 4 . 5 1 . . Fabricators . | . . . . . . . Repair Stations 1 | . . . 1 . . . Recycling Units 2 | . 2 . . . . . Scanalyzers 1 | . . . 1 . . . Garrison Access . | . . . . . . . Total Hacks 51 | . 16 . 30 3 2 . Successful 28 | . 9 . 16 1 2 . Failed 22 | . 6 . 14 2 . . Catastrophic 4 | . 1 . 2 1 . . Database Lockouts 1 | . 1 . . . . . Manual 36 | . 16 . 17 2 1 . Terminals 34 | . 14 . 18 2 . . Fabricators . | . . . . . . . Repair Stations 2 | . . . 2 . . . Recycling Units 2 | . 2 . . . . . Scanalyzers 10 | . . . 10 . . . Garrison Access . | . . . . . . . Terminal Hacks 8 | . 3 . 2 1 2 . Record 1 | . . . . . 1 . Part Schematic 1 | . . . 1 . . . Robot Analysis 3 | . 3 . . . . . Prototype ID Bank 1 | . . . 1 . . . Open Door 1 | . . . . 1 . . Proto ID Catalog 1 | . . . . . 1 . Fabricator Hacks . | . . . . . . . Repair Station Hacks 2 | . . . 2 . . . Scan Component 1 | . . . 1 . . . Repair 1 | . . . 1 . . . Recycling Unit Hacks . | . . . . . . . Scanalyzer 10 | . . . 10 . . . Insert Component 4 | . . . 4 . . . Analyze 4 | . . . 4 . . . Retrieve Study 2 | . . . 2 . . . Garrison Access Hacks . | . . . . . . . Unauthorized Hacks 8 | . 6 . 2 . . . Terminals 6 | . 4 . 2 . . . Track 1 | . 1 . . . . . Botnet 5 | . 3 . 2 . . . Fabricators . | . . . . . . . Repair Stations . | . . . . . . . Recycling Units 2 | . 2 . . . . . Tunnel 2 | . 2 . . . . . Scanalyzers . | . . . . . . . Garrison Access . | . . . . . . . Data Cores Recovered . | . . . . . . . Used . | . . . . . . . Hacking Detections 12 | . 4 . 7 1 . . Full Trace Events 4 | . 2 . 1 1 . . Feedback Events . | . . . . . . . Feedback Blocked . | . . . . . . . Robot Schematics Acquired . | . . . . . . . Robots Built . | . . . . . . . Authchips . | . . . . . . . Time . | . . . . . . . Total Robot Build Rating . | . . . . . . . Part Schematics Acquired 5 | . . . 5 . . . Parts Built . | . . . . . . . Authchips . | . . . . . . . Time . | . . . . . . . Total Part Build Rating . | . . . . . . . Part Studies Acquired 2 | . . . 2 . . . Parts Repaired 1 | . . . 1 . . . Time 38 | . . . 38 . . . Parts Recycled . | . . . . . . . Recycled Matter . | . . . . . . . Retrieved Matter . | . . . . . . . Retrieved Components . | . . . . . . . Parts Scanalyzed 4 | . . . 4 . . . Part Schematics Acquired 4 | . . . 4 . . . Parts Damaged . | . . . . . . . Bothacking | -11 -10 -10 -9 -9 -9 -8 ------------ Run | Yrd Mat Min Mat Min Exi Min Used RIF Installer . | . . . . . . . Robots Hacked 4 | . . . . . 4 . Non-combat 3 | . . . . . 3 . Combat 1 | . . . . . 1 . Robot Hacks Applied 4 | . . . . . 4 . parse_system 4 | . . . . . 4 . Relay Couplers Released . | . . . . . . . Fabnet Peak Effective % . | . . . . . . . Robots Rewired . | . . . . . . . Allies Hacked . | . . . . . . . Hacks Repelled . | . . . . . . . Allies | -11 -10 -10 -9 -9 -9 -8 -------- Run | Yrd Mat Min Mat Min Exi Min Total Allies 3 | . . 3 . . . . Largest Group 3 | . . 3 2 . . . Highest-Rated Group 40 | . . 40 32 . . . Highest-Rated Ally 16 | . . 16 16 . . . Total Orders . | . . . . . . . Ally Attacks 43 | . . 38 5 . . . Total Damage 453 | . . 388 65 . . . Kills 10 | . . 9 1 . . . Allies Corrupted . | . . . . . . . Allies Melted . | . . . . . . . Intel | -11 -10 -10 -9 -9 -9 -8 ------- Run | Yrd Mat Min Mat Min Exi Min Active Infowar (turns) . | . . . . . . . Robot Analysis Total 3 | . 3 . . . . . Derelict Logs Recovered 2 | . . 1 . 1 . . Drone Launches . | . . . . . . . Drone Recoveries . | . . . . . . . Exploration | -11 -10 -10 -9 -9 -9 -8 ------------- Run | Yrd Mat Min Mat Min Exi Min Turns Passed 4976 | 120 860 1074 1288 700 922 12 Spaces Moved 3168 | 74 574 628 728 567 596 1 Core 3 | 3 . . . . . . Treads . | . . . . . . . Legs 51 | . . . . . 50 1 Wheels 3114 | 71 574 628 728 567 546 . Hover . | . . . . . . . Flight . | . . . . . . . Fastest Speed 50 | 50 90 95 85 95 95 330 Average Speed 105 | 87 97 100 102 98 128 330 Slowest Speed 650 | 90 110 105 110 105 650 330 Overloaded Moves . | . . . . . . . Propulsion Burnouts . | . . . . . . . Robots Hopped . | . . . . . . . Potential Cave-ins . | . . . . . . . Cave-ins Triggered . | . . . . . . . Exploration Rate (%) 58 | 5 68 98 71 97 65 4 Regions Visited 6 Branch Regions 4 Pre-discovered Areas 4 | . 2 . . 1 1 . Known Exits Taken . | . . . . . . . Unknown Exits Taken 6 | 1 1 1 1 1 1 . Scrap Searched 3 | . . 1 . 2 . . Spaces Dug . | . . . . . . . Terrain Destroyed 29 | . 23 2 4 . . . Melee . | . . . . . . . Projectile . | . . . . . . . AOE 29 | . 23 2 4 . . . Terrain Rammed . | . . . . . . . Walls Destroyed . | . . . . . . . Machines Disabled . | . . . . . . . Actions | -11 -10 -10 -9 -9 -9 -8 --------- Run | Yrd Mat Min Mat Min Exi Min Total 4289 | 103 738 1034 1005 708 695 6 Wait 641 | . 63 375 85 118 . . Move 3162 | 73 573 627 727 566 595 1 Hop . | . . . . . . . Pick Up 67 | 9 13 2 11 5 27 . Fast Attach 21 | 5 1 . 10 3 2 . Attach 25 | 1 7 . 2 1 11 3 Detach 2 | . . . 1 . 1 . Swap 29 | . 6 4 12 4 3 . Drop 53 | 3 2 4 21 7 16 . Fire 246 | 12 73 22 136 2 1 . Melee 41 | . . . . . 39 2 Ram . | . . . . . . . Kick . | . . . . . . . Crush . | . . . . . . . Escape Stasis . | . . . . . . . Rewire . | . . . . . . . Trap 2 | . . . . 2 . . Miscellaneous . | . . . . . . . Route ------- -11/Scrapyard -10/Materials (discovered 3 exits: *Mat x2 / [*Min]) -10/Mines (discovered 2 exits: *Mat x2) -9/Materials (discovered 5 exits: *Mat x3 / *Min x2) -9/Mines (discovered 3 exits: *Mat x2 / *Exi) -9/Exiles -8/Mines History --------- Turn | Location | Event 15 | -11/Scrapyard | Discovered new exit (range 15) 121 | -11/Scrapyard | Entered Materials 122 | -10/Materials | Met a group of wandering Federalists 310 | -10/Materials | Build established: Mutant 464 | -10/Materials | Discovered new exit (range 14) 489 | -10/Materials | Central database locked down 583 | -10/Materials | Discovered new exit (range 11) 584 | -10/Materials | Lost 3 parts (2n1w) 624 | -10/Materials | Discovered new exit (range 8) 897 | -10/Materials | Core integrity fell below 50% 927 | -10/Materials | Lost 3 parts (1p2w) 981 | -10/Materials | Entered Mines 1009 | -10/Mines | Assisted by bots powering up and referring to "LRC-V3" 1028 | -10/Mines | Assembled infested the area 1033 | -10/Mines | Assisted by a Guerilla fighting off Assembled 1192 | -10/Mines | Build established: Scavenger-Mutant 1487 | -10/Mines | Discovered new exit (range 10) 1720 | -10/Mines | Core integrity fell below 20% 1745 | -10/Mines | Discovered new exit (range 13) 1848 | -10/Mines | Learned location of 2 exits from Materials 2055 | -10/Mines | Entered Materials 2055 | -9/Materials | Accompanied by 2 allies 2055 | -9/Materials | Evolved 2 slots: Utility x2 2056 | -9/Materials | Identified exit to Materials 2514 | -9/Materials | Discovered exit to Materials (range 14) 2567 | -9/Materials | Build established: Mutant 2891 | -9/Materials | Destroyed 7 combat bots 3004 | -9/Materials | Repaired Hrd. Medium Armor Plating 3030 | -9/Materials | Discovered new exit (range 14) 3063 | -9/Materials | Build established: Scavenger-Mutant 3333 | -9/Materials | Discovered new exit (range 11) 3343 | -9/Materials | Entered Mines 3357 | -9/Mines | Learned 2 Materials zone layouts 3362 | -9/Mines | Met a Derelict bent on vengeance 3366 | -9/Mines | Build established: Mutant 3401 | -9/Mines | Discovered exit to Materials (range 6) 3434 | -9/Mines | Received a Rocket Launcher from a helpful Derelict 3502 | -9/Mines | Learned location of Storage (-7) 3550 | -9/Mines | Discovered exit to Materials (range 16) 3583 | -9/Mines | Met a Derelict who couldn't figure out how to use a Trap Extractor 4039 | -9/Mines | Deemed a non-threat by the Exiles lab entrance 4039 | -9/Mines | Discovered new exit (range 5) 4043 | -9/Mines | Entered Exiles 4070 | -9/Exiles | Met 8R-AWN 4086 | -9/Exiles | Met EX-HEX 4123 | -9/Exiles | Met EX-BIN 4153 | -9/Exiles | Met EX-DEC 4180 | -9/Exiles | Learned location of Zion (-7) 4407 | -9/Exiles | Aligned with FarCom system 4408 | -9/Exiles | Given EX-Vault access code 4431 | -9/Exiles | Opened EX-Vault 4436 | -9/Exiles | Found Potential Leg 4438 | -9/Exiles | Found Potential Leg 4440 | -9/Exiles | Found AWS/Autocannon 4447 | -9/Exiles | Found Chronowheel 4468 | -9/Exiles | Warned to stay clear of 0b10 Research branches 4474 | -9/Exiles | Exiles lab attacked by MAIN.C 4629 | -9/Exiles | Discovered new exit (range 10) 4637 | -9/Exiles | Attacked by the Exiles 4731 | -9/Exiles | Lost 3 parts (1p2n) 4747 | -9/Exiles | Destroyed 8R-AWN 4754 | -9/Exiles | Found Exp. Targeting Computer 4758 | -9/Exiles | Found 8R-AWN's Armor/EX 4821 | -9/Exiles | Build established: Hauler-Mutant 4911 | -9/Exiles | Core integrity fell below 50% 4948 | -9/Exiles | System corruption reached 10% 4962 | -9/Exiles | Core integrity fell below 20% 4965 | -9/Exiles | Stole three prototypes: Potential Leg, Chronowheel, AWS/Autocannon 4965 | -9/Exiles | Entered Mines 4973 | -8/Mines | ME-RLN came to Exiles' defense 4977 | -8/Mines | Destroyed by ME-RLN with Improved Arc Thrower Last Messages --------------- 04915_ Wheel+ destroyed. 04922_ System corrupted: Matter fused (-7). 04922_ Hrd. Medium Armor Plating destroyed. 04929_ Dropped Humpback. 04931_ Wheel+ destroyed. 04932_ Acquired 27 matter. 04937_ Acquired 3 matter. 04944_ Lgt. Deuterium Engine destroyed. 04948_ System corrupted: Energy discharge (-37). 04957_ P-60 Hacker resets P-60 Hacker, system corruption cleaned. 04958_ Wheel+ destroyed. 04961_ Katana destroyed. A strange signal echoes through the mines. LOCATION=UNKNOWN GOAL=ESCAPE 04966_ Critical hit (Burn: +37). 04971_ G-50 Soldier destroyed. 04973_ :FI/6Z HRS7%A4|QUM AQ=FAJEXPY,MMO=WVNC4 04973_ ME-RLN: "I came as fast as I could... Wait, it was you!" 04973_ Critical hit (Burn: +37). Map ----- +----------------------------------------------------+ | ?????????????????????????????????????????????????? | | ?????????????????????????????????????????????????? | | ?????????????????????????????????????????????????? | | ?????????????????????????????????????????????????? | | ?????????????????????????????????????????????????? | | ?????????????????????????????????????????????????? | | ?????????????????????????????????????????????????? | | ?????????????????????????????????????????????????? | | ?????????????????????????????????????????????????? | | ?????????????????????????????????????????????????? | | ?????????????????????????????????????????????????? | | ?????????????????????????????????????????????????? | | ?????????????????????????????????????????????????? | | ??????????????????????????###????????????????????? | | ?????????????????????????? ????????????????????? | | ?????????????????????????? #????????????????????? | | ?????????????????????????? #????????????????????? | | ?????????????????????????# p#????????????????????? | | ?????????????????????????# #????????????????????? | | ?????????????????????????# #????????????????????? | | ?????????????????????????# #????????????????????? | | ?????????????????????????# #????????????????????? | | ????????????????????????## ##???????????????????? | | ????????????????????????# #???????????????????? | | ???????????????????????##[% #???????????????????? | | ???????????????????????# @ #???????????????????? | | ??????????????????????# g ????????????? | | ??????????????????????# g #???????????? | | ??????????????????????## #### #??????????? | | ???????????????????????######????? #?????????? | | ???????????????????????????????????? ?????????? | | ?????????????????????????????????????? ?????????? | | ?????????????????????????????????????????????????? | | ?????????????????????????????????????????????????? | | ?????????????????????????????????????????????????? | | ?????????????????????????????????????????????????? | | ?????????????????????????????????????????????????? | | ?????????????????????????????????????????????????? | | ?????????????????????????????????????????????????? | | ?????????????????????????????????????????????????? | | ?????????????????????????????????????????????????? | | ?????????????????????????????????????????????????? | | ?????????????????????????????????????????????????? | | ?????????????????????????????????????????????????? | | ?????????????????????????????????????????????????? | | ?????????????????????????????????????????????????? | | ?????????????????????????????????????????????????? | | ?????????????????????????????????????????????????? | | ?????????????????????????????????????????????????? | | ?????????????????????????????????????????????????? | +----------------------------------------------------+ Best States ------------- Heat Dissipation 42 Energy Generation 19 Energy Capacity 310 Matter Stores 300 Matter Capacity 300 Sight Range 16 Terrain Scan Density 10 Armor Coverage 450 Evasion (%) 43 Offensive Hacking 10 Trap Extractor Capacity 6 Item Schematics ----------------- Huge Storage Unit | -9/Materials | Hacked Hacking Suite | -9/Materials | Scanalyzed Hrd. Medium Armor Plating | -9/Materials | Scanalyzed Plasma Cutter | -9/Materials | Scanalyzed Com. Wheel | -9/Materials | Scanalyzed Robot Schematics ------------------ None Fabricated ------------ Nothing Repaired ---------- Hrd. Medium Armor Plating | 28% | -9/Materials Studied --------- Wheel | -9/Materials | Hacked Com. Wheel | -9/Materials | Hacked Alien Tech Used ----------------- None Achievements -------------- None Challenges ------------ None Game ------ Seed TerrabombWarlordProtection Manual? 0 Play Time 00:36:04 Cumulative 409.4 hours Start 2025.12.10 @ 08:56:05 End 2025.12.10 @ 12:41:23 Sessions 2 Manual Loads 0 Difficulty Rogue Special Mode None Game No. 406 Rogue 402 Adventurer 3 Explorer 1 Win Type - Total 5 Types 4/0/1/0/0/0/0/0/0/0 Lore% 86 Gallery% 80 Achievement% 69 Wizard Run 0 Options --------- Layout 0 ASCII 0 Keyboard 0 Movement Mouse Keybinds 0 Fullscreen 2 Font 18/SmallcapsGlow Map View 76x50 Zoom Use 0% Tactical HUD 1 Map Filters NONE Filters NONE Steam 1 RUN: 1541f4e1-278a-465d-89c6-855cb7f77013